fUST/lending_fUST_20250301
["ID","MTS","AMOUNT","RATE_DAILY","PERIOD"]
[354879337,1740768641201,-500.0,0.00049315,120]
[354879338,1740768641213,-810.88,0.00049315,120]
[354879339,1740768641226,-500.0,0.00049315,120]
[354879340,1740768641238,-505.36780972,0.00049315,120]
[354879341,1740768641251,-500.0,0.00049315,120]
[354879342,1740768641263,-508.42206857,0.00049315,120]
[354879343,1740768641274,-500.0,0.00049315,120]
[354879344,1740768641285,-500.0,0.00049315,120]
[354879345,1740768641296,-500.0,0.00049315,120]
[354879346,1740768641309,-500.0,0.00049315,120]
[354879348,1740768641320,-989.7,0.00049315,120]
[354879350,1740768641332,-500.0,0.00049315,120]
[354879352,1740768641344,-1439.75,0.00049315,120]
[354879354,1740768641356,-500.0,0.00049315,120]
[354879356,1740768641368,-500.0,0.00049315,120]
[354879359,1740768641381,-500.0,0.00049315,120]
[354879360,1740768641393,-500.0,0.00049315,120]
[354879361,1740768641405,-2876.95,0.00049315,120]
[354879362,1740768641417,-607.39,0.00049315,120]
[354879363,1740768641429,-500.0,0.00049315,120]
[354879366,1740768641441,-530.74206459,0.00049315,120]
[354879368,1740768641452,-500.0,0.00049315,120]
[354879369,1740768641462,-500.0,0.00049315,120]
[354879370,1740768641471,-500.0,0.00049315,120]
[354879371,1740768641480,-500.0,0.00049315,120]
[354879372,1740768641490,-500.0,0.00049315,120]
[354879373,1740768641499,-1098.15,0.00049315,120]
[354879374,1740768641508,-914.26,0.00049315,120]
[354879375,1740768641518,-500.0,0.00049315,120]
[354879376,1740768641527,-316.03495866,0.00049315,120]
[354879377,1740768641537,-500.0,0.00049315,120]
[354879378,1740768641547,-500.0,0.00049315,120]
[354879379,1740768641819,-500.0,0.00049315,120]
[354879380,1740768641845,-511.45442932,0.00049315,120]
[354879381,1740768641862,-500.0,0.00049315,120]
[354879382,1740768641871,-500.0,0.00049315,120]
[354879383,1740768641882,-500.0,0.00049315,120]
[354879384,1740768641891,-500.0,0.00049315,120]
[354879385,1740768641901,-500.0,0.00049315,120]
[354879386,1740768641912,-1872.13,0.00049315,120]
[354879387,1740768641922,-500.0,0.00049315,7]
[354879388,1740768641932,-500.0,0.00049315,120]
[354879389,1740768641942,-500.0,0.00049315,120]
[354879390,1740768641951,-846.02,0.00049315,120]
[354879391,1740768641961,-871.36,0.00049315,120]
[354879392,1740768641971,-500.0,0.00049315,120]
[354879393,1740768641982,-500.0,0.00049315,120]
[354879394,1740768641993,-500.0,0.00049315,120]
[354879395,1740768642003,-500.0,0.00049315,120]
[354879396,1740768642013,-1794.17,0.00049315,120]
[354879397,1740768642024,-500.0,0.00049315,120]
[354879398,1740768642035,-575.32,0.00049315,120]
[354879399,1740768642044,-500.0,0.00049315,120]
[354879400,1740768642053,-500.0,0.00049315,120]
[354879401,1740768642063,-1089.81,0.00049315,120]
[354879402,1740768642073,-500.0,0.00049315,120]
[354879403,1740768642082,-500.0,0.00049315,120]
[354879404,1740768642092,-500.0,0.00049315,120]
[354879405,1740768642103,-988.08,0.00049315,120]
[354879406,1740768642113,-790.93,0.00049315,120]
[354879407,1740768642122,-500.0,0.00049315,120]
[354879408,1740768642132,-500.0,0.00049315,120]
[354879409,1740768642142,-500.0,0.00049315,120]
[354879410,1740768642151,-724.53,0.00049315,120]
[354879411,1740768642165,-500.0,0.00049315,120]
[354879412,1740768642175,-972.71,0.00049315,120]
[354879413,1740768642184,-500.0,0.00049315,120]
[354879414,1740768642193,-1240.92,0.00049315,120]
[354879415,1740768642202,-500.0,0.00049315,120]
[354879416,1740768642212,-715.72,0.00049315,120]
[354879417,1740768642222,-1606.6,0.00049315,120]
[354879418,1740768642231,-500.0,0.00049315,120]
[354879419,1740768642242,-500.0,0.00049315,120]
[354879420,1740768642252,-500.0,0.00049315,120]
[354879421,1740768642261,-531.90953947,0.00049315,120]
[354879422,1740768642271,-500.0,0.00049315,2]
[354879423,1740768642280,-500.0,0.00049315,120]
[354879424,1740768642290,-1037.65,0.00049315,120]
[354879425,1740768642299,-1340.69,0.00049315,120]
[354879426,1740768642309,-500.0,0.00049315,120]
[354879427,1740768642319,-500.0,0.00049315,120]
[354879428,1740768642328,-714.32,0.00049315,120]
[354879429,1740768642338,-587.42,0.00049315,120]
[354879430,1740768642348,-500.0,0.00049315,120]
[354879431,1740768642357,-502.74175473,0.00049315,120]
[354879432,1740768642367,-500.0,0.00049315,120]
[354879433,1740768642376,-500.0,0.00049315,120]
[354879434,1740768642385,-500.0,0.00049315,120]
[354879435,1740768642395,-500.0,0.00049315,120]
[354879436,1740768642404,-500.0,0.00049315,120]
[354879437,1740768642415,-152.651255,0.00049315,120]
[354879438,1740768642424,-500.0,0.00049315,120]
[354879439,1740768642433,-500.0,0.00049315,120]
[354879440,1740768642443,-601.67,0.00049315,120]
[354879441,1740768642452,-500.0,0.00049315,120]
[354879442,1740768642463,-753.65,0.00049315,120]
[354879443,1740768642472,-500.0,0.00049315,120]
[354879444,1740768642482,-500.0,0.00049315,120]
[354879445,1740768642491,-500.0,0.00049315,120]
[354879446,1740768642500,-526.96,0.00049315,120]
[354879447,1740768642510,-501.05924142,0.00049315,120]
[354879448,1740768642519,-563.38,0.00049315,120]
[354879449,1740768642528,-404.64009893,0.00049315,120]
[354879450,1740768642538,-500.0,0.00049315,120]
[354879451,1740768642547,-3026.53,0.00049315,120]
[354879452,1740768642556,-500.0,0.00049315,120]
[354879453,1740768642566,-500.0,0.00049315,120]
[354879454,1740768642575,-500.0,0.00049315,120]
[354879455,1740768642585,-500.0,0.00049315,120]
[354879456,1740768642594,-500.0,0.00049315,120]
[354879457,1740768642604,-500.0,0.00049315,120]
[354879458,1740768642613,-589.77,0.00049315,120]
[354879459,1740768642622,-500.0,0.00049315,120]
[354879460,1740768642632,-500.0,0.00049315,120]
[354879461,1740768642641,-500.0,0.00049315,120]
[354879462,1740768642651,-500.0,0.00049315,120]
[354879463,1740768642663,-512.70773404,0.00049315,120]
[354879464,1740768642672,-1881.85,0.00049315,120]
[354879465,1740768642682,-500.0,0.00049315,120]
[354879466,1740768642691,-702.93821054,0.00049315,120]
[354879467,1740768642700,-1630.51,0.00049315,120]
[354879468,1740768642710,-500.0,0.00049315,120]
[354879469,1740768642719,-500.0,0.00049315,120]
[354879470,1740768642729,-500.0,0.00049315,120]
[354879471,1740768642739,-500.0,0.00049315,120]
[354879472,1740768642749,-2004.15,0.00049315,120]
[354879473,1740768642758,-500.0,0.00049315,120]
[354879475,1740768642767,-500.0,0.00049315,120]
[354879476,1740768642778,-500.0,0.00049315,120]
[354879477,1740768642787,-1726.62,0.00049315,120]
[354879478,1740768642797,-500.0,0.00049315,120]
[354879479,1740768642807,-500.0,0.00049315,120]
[354879480,1740768642817,-500.0,0.00049315,120]
[354879481,1740768642827,-500.0,0.00049315,120]
[354879482,1740768642836,-2245.62,0.00049315,120]
[354879483,1740768642846,-500.0,0.00049315,120]
[354879484,1740768642856,-2016.49,0.00049315,120]
[354879485,1740768642866,-502.08671611,0.00049315,120]
[354879486,1740768642875,-500.0,0.00049315,120]
[354879487,1740768642884,-500.0,0.00049315,30]
[354879488,1740768642894,-500.0,0.00049315,120]
[354879489,1740768642903,-500.0,0.00049315,120]
[354879490,1740768642914,-1481.92,0.00049315,120]
[354879492,1740768642923,-501.03835539,0.00049315,120]
[354879495,1740768642933,-500.0,0.00049315,120]
[354879496,1740768642943,-599.57,0.00049315,120]
[354879498,1740768642953,-500.0,0.00049315,120]
[354879500,1740768642962,-500.0,0.00049315,120]
[354879502,1740768642972,-207.50943107,0.00049315,120]
[354879504,1740768642983,-500.0,0.00049315,120]
[354879505,1740768642997,-500.0,0.00049315,120]
[354879506,1740768643006,-500.0,0.00049315,120]
[354879507,1740768643017,-500.0,0.00049315,120]
[354879508,1740768643027,-581.34,0.00049315,120]
[354879509,1740768643037,-1204.87,0.00049315,120]
[354879510,1740768643046,-500.0,0.00049315,120]
[354879511,1740768643058,-300.0,0.00049315,120]
[354879512,1740768643069,-558.61,0.00049315,120]
[354879513,1740768643079,-500.0,0.00049315,120]
[354879514,1740768643089,-1296.83,0.00049315,120]
[354879515,1740768643099,-500.19223468,0.00049315,120]
[354879516,1740768643109,-2397.32,0.00049315,120]
[354879517,1740768643119,-500.0,0.00049315,120]
[354879518,1740768643127,-500.0,0.00049315,120]
[354879519,1740768643137,-500.0,0.00049315,120]
[354879520,1740768643147,-500.0,0.00049315,120]
[354879521,1740768643157,-500.0,0.00049315,30]
[354879522,1740768643167,-500.0,0.00049315,120]
[354879523,1740768643176,-500.0,0.00049315,120]
[354879524,1740768643185,-500.0,0.00049315,120]
[354879525,1740768643195,-1396.22,0.00049315,120]
[354879526,1740768643204,-500.0,0.00049315,120]
[354879527,1740768643214,-500.0,0.00049315,120]
[354879528,1740768643223,-500.0,0.00049315,120]
[354879529,1740768643232,-500.0,0.00049315,120]
[354879530,1740768643242,-500.0,0.00049315,120]
[354879531,1740768643252,-500.0,0.00049315,120]
[354879532,1740768643261,-1602.52,0.00049315,120]
[354879533,1740768643271,-811.19,0.00049315,120]
[354879534,1740768643281,-500.0,0.00049315,120]
[354879535,1740768643291,-500.58181343,0.00049315,120]
[354879536,1740768643301,-714.35,0.00049315,120]
[354879537,1740768643311,-500.0,0.00049315,120]
[354879538,1740768643320,-1139.78,0.00049315,120]
[354879539,1740768643330,-500.0,0.00049315,120]
[354879540,1740768643339,-500.0,0.00049315,120]
[354879541,1740768643349,-500.0,0.00049315,120]
[354879542,1740768643359,-500.0,0.00049315,120]
[354879543,1740768643369,-508.14881745,0.00049315,120]
[354879544,1740768643379,-500.0,0.00049315,120]
[354879545,1740768643388,-500.0,0.00049315,120]
[354879546,1740768643398,-638.66,0.00049315,120]
[354879547,1740768643408,-500.0,0.00049315,120]
[354879548,1740768643418,-500.0,0.00049315,120]
[354879549,1740768643427,-500.0,0.00049315,120]
[354879550,1740768643446,-500.0,0.00049315,120]
[354879551,1740768643460,-728.06,0.00049315,120]
[354879552,1740768643471,-595.18,0.00049315,120]
[354879553,1740768643482,-500.0,0.00049315,120]
[354879554,1740768643492,-590.43,0.00049315,120]
[354879555,1740768643502,-500.0,0.00049315,120]
[354879556,1740768643513,-3004.81,0.00049315,120]
[354879557,1740768643523,-500.0,0.00049315,120]
[354879558,1740768643534,-1557.26,0.00049315,120]
[354879559,1740768643543,-1615.06,0.00049315,120]
[354879561,1740768643554,-1000.0,0.00049315,120]
[354879564,1740768643564,-500.0,0.00049315,120]
[354879566,1740768643574,-425.11082853,0.00049315,120]
[354879571,1740768643617,-74.88917147,0.00049315,120]
[354879573,1740768643627,-500.0,0.00049315,120]
[354879575,1740768643637,-500.0,0.00049315,120]
[354879577,1740768643647,-500.0,0.00049315,120]
[354879579,1740768643658,-503.85523431,0.00049315,120]
[354879581,1740768643668,-500.0,0.00049315,120]
[354879582,1740768643679,-2040.71,0.00049315,120]
[354879583,1740768643689,-331.1434345,0.00049315,120]
[354879584,1740768643699,-500.0,0.00049315,14]
[354879585,1740768643709,-500.0,0.00049315,120]
[354879586,1740768643719,-500.0,0.00049315,120]
[354879587,1740768643730,-500.0,0.00049315,120]
[354879588,1740768643740,-500.0,0.00049315,30]
[354879589,1740768643749,-500.0,0.00049315,120]
[354879590,1740768643759,-500.0,0.00049315,120]
[354879591,1740768643769,-423.45836464,0.00049315,120]
[354879592,1740768643780,-500.0,0.00049315,120]
[354879593,1740768643790,-513.30709195,0.00049315,120]
[354879594,1740768643800,-500.0,0.00049315,120]
[354879595,1740768643810,-502.69755292,0.00049315,120]
[354879596,1740768643820,-500.0,0.00049315,120]
[354879597,1740768643831,-2561.42,0.00049315,120]
[354879598,1740768643840,-500.0,0.00049315,120]
[354879599,1740768643850,-221.75019229,0.00049315,2]
[354879600,1740768643860,-500.0,0.00049315,120]
[354879601,1740768643870,-744.94,0.00049315,30]
[354879602,1740768643880,-500.0,0.00049315,120]
[354879603,1740768643891,-985.61,0.00049315,120]
[354879604,1740768643900,-500.0,0.00049315,120]
[354879605,1740768643911,-257.78995802,0.00049315,120]
[354879606,1740768643921,-500.0,0.00049315,120]
[354879607,1740768643931,-500.0,0.00049315,120]
[354879608,1740768643941,-507.95315121,0.00049315,120]
[354879609,1740768643951,-500.0,0.00049315,120]
[354879610,1740768643961,-500.0,0.00049315,120]
[354879611,1740768643971,-561.97,0.00049315,120]
[354879612,1740768643981,-500.0,0.00049315,120]
[354879613,1740768643991,-500.0,0.00049315,120]
[354879614,1740768644003,-500.0,0.00049315,120]
[354879615,1740768644013,-1479.99,0.00049315,120]
[354879616,1740768644022,-500.0,0.00049315,120]
[354879617,1740768644032,-989.74,0.00049315,120]
[354879618,1740768644043,-500.0,0.00049315,120]
[354879619,1740768644053,-1714.52,0.00049315,120]
[354879620,1740768644068,-500.0,0.00049315,120]
[354879621,1740768644079,-1.53188482,0.00049315,120]
[354879627,1740768644440,-498.46811518,0.00049315,120]
[354879628,1740768644451,-500.0,0.00049315,120]
[354879629,1740768644460,-1608.17494631,0.00049315,120]
[354879667,1740768644869,-3472.34505369,0.00049315,120]
[354879668,1740768644880,-266.01322531,0.00049315,120]
[354879714,1740768647396,-4944.96,0.00049305,10]
[354879715,1740768647406,-463.49677469,0.00049315,120]
[354879716,1740768647418,-500.0,0.00049315,120]
[354879717,1740768647427,-648.85,0.00049315,120]
[354879718,1740768647437,-500.0,0.00049315,120]
[354879719,1740768647447,-500.0,0.00049315,120]
[354879720,1740768647456,-944.15,0.00049315,120]
[354879721,1740768647467,-500.0,0.00049315,120]
[354879722,1740768647476,-578.42,0.00049315,120]
[354879723,1740768647486,-500.0,0.00049315,120]
[354879724,1740768647496,-700.99,0.00049315,120]
[354879725,1740768647506,-2743.01,0.00049315,120]
[354879726,1740768647515,-500.0,0.00049315,120]
[354879727,1740768647524,-500.0,0.00049315,120]
[354879728,1740768647534,-500.0,0.00049315,21]
[354879729,1740768647544,-607.52,0.00049315,120]
[354879730,1740768647554,-500.0,0.00049315,120]
[354879731,1740768647563,-500.0,0.00049315,120]
[354879732,1740768647573,-500.0,0.00049315,120]
[354879733,1740768647582,-500.0,0.00049315,120]
[354879734,1740768647592,-200.0,0.00049315,7]
[354879735,1740768647602,-987.34,0.00049315,120]
[354879736,1740768647611,-500.0,0.00049315,120]
[354879737,1740768647620,-395.39839817,0.00049315,120]
[354879738,1740768647630,-507.38659911,0.00049315,120]
[354879739,1740768647640,-3027.45,0.00049315,120]
[354879740,1740768647650,-500.0,0.00049315,120]
[354879741,1740768647661,-500.0,0.00049315,120]
[354879742,1740768647671,-500.0,0.00049315,120]
[354879743,1740768647680,-763.64,0.00049315,120]
[354879744,1740768647690,-500.0,0.00049315,120]
[354879745,1740768647700,-596.02,0.00049315,120]
[354879746,1740768647710,-500.0,0.00049315,120]
[354879747,1740768647719,-500.0,0.00049315,120]
[354879748,1740768647730,-500.0,0.00049315,120]
[354879749,1740768647740,-500.0,0.00049315,120]
[354879750,1740768647751,-500.0,0.00049315,120]
[354879751,1740768647762,-500.0,0.00049315,120]
[354879752,1740768647772,-500.0,0.00049315,120]
[354879753,1740768647782,-529.51,0.00049315,120]
[354879754,1740768647792,-1550.97,0.00049315,120]
[354879755,1740768647802,-500.0,0.00049315,120]
[354879756,1740768647812,-500.0,0.00049315,120]
[354879757,1740768647822,-500.0,0.00049315,120]
[354879758,1740768647832,-500.0,0.00049315,120]
[354879759,1740768647841,-500.0,0.00049315,120]
[354879760,1740768647851,-1034.83,0.00049315,120]
[354879761,1740768647860,-500.0,0.00049315,120]
[354879762,1740768647870,-500.0,0.00049315,120]
[354879763,1740768647879,-500.0,0.00049315,120]
[354879764,1740768647890,-509.21389996,0.00049315,120]
[354879765,1740768647900,-500.0,0.00049315,120]
[354879766,1740768647911,-500.0,0.00049315,120]
[354879767,1740768647921,-1722.26,0.00049315,120]
[354879768,1740768647931,-501.19862947,0.00049315,120]
[354879769,1740768647941,-500.0,0.00049315,120]
[354879770,1740768647951,-506.93,0.00049315,120]
[354879771,1740768647960,-500.0,0.00049315,120]
[354879772,1740768647971,-500.0,0.00049315,120]
[354879773,1740768647980,-500.0,0.00049315,120]
[354879774,1740768647991,-536.89,0.00049315,120]
[354879775,1740768648003,-500.0,0.00049315,120]
[354879776,1740768648013,-500.0,0.00049315,120]
[354879777,1740768648023,-500.0,0.00049315,120]
[354879778,1740768648033,-2328.33,0.00049315,120]
[354879779,1740768648043,-1080.77,0.00049315,120]
[354879780,1740768648053,-500.0,0.00049315,120]
[354879781,1740768648063,-770.71,0.00049315,120]
[354879782,1740768648072,-500.0,0.00049315,120]
[354879783,1740768648084,-500.0,0.00049315,120]
[354879784,1740768648095,-502.88,0.00049315,120]
[354879785,1740768648104,-500.0,0.00049315,120]
[354879786,1740768648114,-151.0,0.00049315,120]
[354879787,1740768648124,-500.0,0.00049315,120]
[354879788,1740768648133,-500.0,0.00049315,120]
[354879789,1740768648143,-500.0,0.00049315,120]
[354879790,1740768648153,-500.0,0.00049315,120]
[354879791,1740768648164,-199.31,0.00049315,120]
[354879792,1740768648174,-151.0,0.00049315,120]
[354879793,1740768648185,-500.0,0.00049315,120]
[354879794,1740768648195,-500.0,0.00049315,120]
[354879795,1740768648205,-2019.89,0.00049315,120]
[354879796,1740768648215,-500.0,0.00049315,120]
[354879797,1740768648225,-500.0,0.00049315,120]
[354879798,1740768648235,-2126.2,0.00049315,120]
[354879799,1740768648245,-2440.38,0.00049315,15]
[354879800,1740768648254,-500.0,0.00049315,120]
[354879801,1740768648264,-500.0,0.00049315,120]
[354879802,1740768648273,-500.0,0.00049315,120]
[354879803,1740768648284,-151.0,0.00049315,120]
[354879804,1740768648294,-2038.88,0.00049315,120]
[354879805,1740768648304,-500.0,0.00049315,120]
[354879806,1740768648315,-51696.01932594,0.00049315,7]
[354879807,1740768648333,-148942.49001885,0.00049315,7]
[354879808,1740769619136,-348.68495945,0.00033,30]
[354879809,1740769755079,-547.78005985,0.000309,2]
[354879810,1740769755100,-151.31504055,0.00033,30]
[354879860,1740769832690,-547.78005985,0.000359,2]
[354879861,1740769832702,-1731.4874958,0.00040425,2]
[354879862,1740769832712,-547.78005985,0.000409,2]
[354879863,1740769832721,-160.0,0.00042878,2]
[354879864,1740769832731,-160.0,0.00042878,2]
[354879865,1740769832742,-235.566011,0.00042972,2]
[354879866,1740769832752,-173.26958558,0.0004307,120]
[354879867,1740769832762,-195.3125,0.0004317,120]
[354879868,1740769832772,-173.26958556,0.0004594,120]
[354879869,1740769832782,-1735.70280404,0.00047458,2]
[354879870,1740769832792,-1168.97836107,0.00048754,2]
[354879871,1740769832802,-173.26958556,0.0004881,120]
[354879872,1740769832812,-151.0,0.00048871,2]
[354879873,1740769832822,-500.0,0.00048871,2]
[354879874,1740769832832,-201.17385702,0.000489,11]
[354879875,1740769832842,-8476.76804911,0.000489,2]
[354879877,1740769832852,-200.0,0.00049,81]
[354879879,1740769832861,-1000.0,0.00049,120]
[354879880,1740769832871,-1000.0,0.00049,120]
[354879881,1740769832880,-1000.0,0.00049,120]
[354879882,1740769832890,-1000.0,0.00049,120]
[354879883,1740769832902,-648.308721,0.00049,112]
[354879884,1740769832911,-1000.0,0.00049,120]
[354879885,1740769832922,-1000.0,0.00049,120]
[354879886,1740769832931,-1000.0,0.00049,120]
[354879887,1740769832940,-500.0,0.000491,113]
[354879888,1740769832952,-346.09826318,0.00049115,28]
[354879889,1740769832962,-800.0,0.00049131,14]
[354879890,1740769832971,-164.89,0.0004919,2]
[354879891,1740769832981,-500.0,0.000492,114]
[354879892,1740769832990,-164.89,0.00049205,2]
[354879893,1740769833000,-164.89,0.00049205,2]
[354879894,1740769833010,-164.89,0.00049205,2]
[354879895,1740769833019,-164.89,0.00049205,2]
[354879896,1740769833028,-164.89,0.00049205,2]
[354879897,1740769833038,-160.453,0.00049215,86]
[354879898,1740769833048,-172.11351106,0.00049215,86]
[354879899,1740769833058,-3000.0,0.00049215,2]
[354879900,1740769833068,-283.77,0.00049215,120]
[354879901,1740769833077,-165.53369227,0.00049215,120]
[354879902,1740769833087,-165.53369227,0.00049215,120]
[354879903,1740769833096,-165.53369227,0.00049215,120]
[354879904,1740769833106,-155.57,0.00049215,120]
[354879905,1740769833115,-181.50605015,0.00049215,120]
[354879906,1740769833125,-269.04734445,0.00049215,120]
[354879907,1740769833134,-269.04734445,0.00049215,120]
[354879908,1740769833144,-269.04734445,0.00049215,120]
[354879909,1740769833154,-269.04734445,0.00049215,120]
[354879910,1740769833164,-269.04734445,0.00049215,120]
[354879911,1740769833174,-269.04734445,0.00049215,120]
[354879912,1740769833184,-269.04734445,0.00049215,120]
[354879913,1740769833195,-269.04734445,0.00049215,120]
[354879914,1740769833205,-269.04734445,0.00049215,120]
[354879915,1740769833215,-269.04734445,0.00049215,120]
[354879916,1740769833224,-269.04734445,0.00049215,120]
[354879917,1740769833234,-269.04734445,0.00049215,120]
[354879918,1740769833243,-269.04734445,0.00049215,120]
[354879919,1740769833252,-269.04734445,0.00049215,120]
[354879920,1740769833263,-269.04734445,0.00049215,120]
[354879921,1740769833272,-269.04734445,0.00049215,120]
[354879922,1740769833282,-269.04734445,0.00049215,120]
[354879923,1740769833292,-269.04734445,0.00049215,120]
[354879924,1740769833302,-269.04734445,0.00049215,120]
[354879925,1740769833312,-269.04,0.00049215,120]
[354879926,1740769833322,-627.77713704,0.00049215,120]
[354879927,1740769833332,-627.77713704,0.00049215,120]
[354879928,1740769833341,-627.77713704,0.00049215,120]
[354879929,1740769833351,-627.77713704,0.00049215,120]
[354879930,1740769833361,-627.77713704,0.00049215,120]
[354879931,1740769833371,-627.77713704,0.00049215,120]
[354879932,1740769833385,-627.77713704,0.00049215,120]
[354879933,1740769833395,-627.77713704,0.00049215,120]
[354879934,1740769833405,-627.77713704,0.00049215,120]
[354879935,1740769833415,-627.77713704,0.00049215,120]
[354879936,1740769833427,-627.77713704,0.00049215,120]
[354879937,1740769833437,-627.77713704,0.00049215,120]
[354879938,1740769833447,-627.77713704,0.00049215,120]
[354879939,1740769833457,-627.77713704,0.00049215,120]
[354879940,1740769833468,-627.77713704,0.00049215,120]
[354879941,1740769833479,-627.77713704,0.00049215,120]
[354879942,1740769833489,-627.77713704,0.00049215,120]
[354879943,1740769833499,-627.77713704,0.00049215,120]
[354879944,1740769833508,-627.77713704,0.00049215,120]
[354879945,1740769833518,-800.0,0.00049262,14]
[354879946,1740769833528,-164.89,0.0004929,2]
[354879947,1740769833538,-500.0,0.000493,114]
[354879948,1740769833547,-2866.69784821,0.000493,120]
[354879949,1740769833557,-4120.8,0.00049305,10]
[354879950,1740769833568,-334.84321967,0.00049314,2]
[354879951,1740769833577,-195.20013303,0.00049314,31]
[354879952,1740769833587,-25000.0,0.00049315,33]
[354879953,1740769833596,-59925.81325054,0.00049315,35]
[354879954,1740769833605,-115749.08980001,0.00049315,30]
[354879955,1740769833615,-500.0,0.00049315,120]
[354879956,1740769833624,-500.0,0.00049315,120]
[354879957,1740769833634,-500.0,0.00049315,120]
[354879958,1740769833643,-500.0,0.00049315,120]
[354879959,1740769833652,-504.32029485,0.00049315,30]
[354879960,1740769833661,-500.0,0.00049315,120]
[354879961,1740769833670,-500.0,0.00049315,120]
[354879962,1740769833679,-500.0,0.00049315,120]
[354879963,1740769833688,-500.0,0.00049315,120]
[354879964,1740769833699,-500.0,0.00049315,120]
[354879965,1740769833708,-500.0,0.00049315,120]
[354879966,1740769833718,-500.0,0.00049315,120]
[354879967,1740769833727,-500.0,0.00049315,120]
[354879968,1740769833737,-500.0,0.00049315,120]
[354879969,1740769833747,-502.45762006,0.00049315,120]
[354879970,1740769833756,-500.0,0.00049315,120]
[354879971,1740769833766,-281.36049467,0.00049315,120]
[354879972,1740769833775,-500.0,0.00049315,120]
[354879973,1740769833785,-500.0,0.00049315,120]
[354879974,1740769833795,-500.0,0.00049315,120]
[354879975,1740769833805,-500.0,0.00049315,120]
[354879976,1740769833814,-507.32732665,0.00049315,120]
[354879977,1740769833824,-500.0,0.00049315,120]
[354879978,1740769833834,-502.49529427,0.00049315,120]
[354879979,1740769833843,-500.0,0.00049315,120]
[354879980,1740769833853,-500.0,0.00049315,120]
[354879981,1740769833863,-500.0,0.00049315,120]
[354879982,1740769833875,-500.0,0.00049315,120]
[354879983,1740769833885,-500.0,0.00049315,120]
[354879984,1740769833895,-500.0,0.00049315,120]
[354879985,1740769833905,-500.0,0.00049315,120]
[354879986,1740769833914,-500.98011599,0.00049315,120]
[354879987,1740769833924,-500.0,0.00049315,120]
[354879988,1740769833933,-500.0,0.00049315,120]
[354879989,1740769833944,-500.0,0.00049315,120]
[354879990,1740769833956,-513.54,0.00049315,120]
[354879991,1740769833966,-500.0,0.00049315,120]
[354879992,1740769833976,-333.44500826,0.00049315,120]
[354879993,1740769833986,-500.0,0.00049315,120]
[354879994,1740769833996,-500.0,0.00049315,120]
[354879995,1740769834006,-500.0,0.00049315,120]
[354879996,1740769834015,-500.0,0.00049315,120]
[354879997,1740769834025,-948.47,0.00049315,120]
[354879998,1740769834035,-500.0,0.00049315,120]
[354879999,1740769834044,-500.0,0.00049315,120]
[354880000,1740769834054,-500.0,0.00049315,120]
[354880001,1740769834063,-500.0,0.00049315,120]
[354880002,1740769834072,-500.0,0.00049315,120]
[354880003,1740769834082,-500.0,0.00049315,120]
[354880004,1740769834091,-500.0,0.00049315,120]
[354880005,1740769834101,-500.0,0.00049315,120]